[Event "Sunway Sitges Chess Festival"]
[Date "2024.12.21"]
[White "Gavrilescu, David"]
[Black "Kuandykuly, Danis"]
[WhiteElo "2549"]
[BlackElo "2168"]
[Round "5.28"]
[Result "1-0"]
[TimeControl "40/5400+30:1800+30"]

1. e4 {[%clk 1:30:57]} 1... e5 {[%clk 1:19:32]} 2. Nf3 {[%clk 1:30:36]} 2... Nc6
{[%clk 1:19:54]} 3. Bc4 {[%clk 1:30:28]} 3... Nf6 {[%clk 1:20:15]} 4. d3 {[%clk
1:30:27]} 4... Bc5 {[%clk 1:20:28]} 5. Bg5 {[%clk 1:30:04]} 5... h6 {[%clk
1:20:01]} 6. Bh4 {[%clk 1:30:14]} 6... a6 {[%clk 1:18:57]} 7. c3 {[%clk
1:29:37]} 7... Ba7 {[%clk 1:17:06]} 8. Nbd2 {[%clk 1:29:22]} 8... d6 {[%clk
1:17:17]} 9. O-O {[%clk 1:28:58]} 9... Qe7 {[%clk 1:11:27]} 10. b4 {[%clk
1:28:22]} 10... g5 {[%clk 1:09:23]} 11. Bg3 {[%clk 1:28:41]} 11... Bg4 {[%clk
1:08:05]} 12. Kh1 {[%clk 1:23:34]} 12... Nd8 {[%clk 0:58:44]} 13. d4 {[%clk
1:10:25]} 13... exd4 {[%clk 0:49:15]} 14. e5 {[%clk 1:07:42]} 14... dxe5 {[%clk
0:46:14]} 15. Bxe5 {[%clk 1:06:14]} 15... Ne6 {[%clk 0:44:50]} 16. cxd4 {[%clk
1:00:45]} 16... O-O-O {[%clk 0:41:45]} 17. d5 {[%clk 0:47:24]} 17... Nf4 {[%clk
0:37:11]} 18. Re1 {[%clk 0:40:19]} 18... Bxf2 {[%clk 0:31:25]} 19. d6 {[%clk
0:40:29]} 19... Rxd6 {[%clk 0:23:53]} 20. Bxf4 {[%clk 0:37:34]} 20... Bxe1
{[%clk 0:23:39]} 21. Bxd6 {[%clk 0:37:17]} 21... Qxd6 {[%clk 0:24:00]} 22. Qxe1
{[%clk 0:37:41]} 22... Re8 {[%clk 0:23:53]} 23. Qg1 {[%clk 0:32:10]} 23... Bxf3
{[%clk 0:13:11]} 24. Nxf3 {[%clk 0:32:31]} 24... Ne4 {[%clk 0:12:50]} 25. Qd4
{[%clk 0:28:55]} 25... Qf4 {[%clk 0:09:51]} 26. Rf1 {[%clk 0:18:29]} 26... Rd8
{[%clk 0:07:13]} 27. Bd5 {[%clk 0:17:01]} 27... Ng3+ {[%clk 0:04:41]} 28. hxg3
{[%clk 0:17:26]} 28... Qxd4 {[%clk 0:05:06]} 29. Nxd4 {[%clk 0:17:50]} 29...
Rxd5 {[%clk 0:05:33]} 30. Nf5 {[%clk 0:18:12]} 30... Rd2 {[%clk 0:05:25]} 31. a3
{[%clk 0:14:49]} 31... g4 {[%clk 0:02:49]} 32. Nxh6 {[%clk 0:11:25]} 32... Rd3
{[%clk 0:03:08]} 33. Kh2 {[%clk 0:11:51]} 33... Rxa3 {[%clk 0:03:34]} 34. Rxf7
{[%clk 0:12:12]} 34... Rc3 {[%clk 0:02:52]} 35. Nxg4 {[%clk 0:11:33]} 35... c5
{[%clk 0:03:17]} 36. bxc5 {[%clk 0:11:59]} 36... Rxc5 {[%clk 0:03:42]} 37. Nf6
{[%clk 0:12:02]} 37... a5 {[%clk 0:03:54]} 38. g4 {[%clk 0:12:27]} 38... a4
{[%clk 0:04:19]} 39. Ne4 {[%clk 0:11:52]} 39... Rc6 {[%clk 0:04:40]} 40. g5
{[%clk 0:41:28]} 40... Kb8 {[%clk 0:33:16]} 41. Rf6 {[%clk 0:38:47]} 41... Rc4
{[%clk 0:33:15]} 42. Nd6 {[%clk 0:35:48]} 42... Rc5 {[%clk 0:33:21]} 43. Rf7
{[%clk 0:35:23]} 43... a3 {[%clk 0:33:11]} 44. Rxb7+ {[%clk 0:35:09]} 44... Ka8
{[%clk 0:33:40]} 45. Rb1 {[%clk 0:35:22]} 45... Rxg5 {[%clk 0:33:13]} 46. Ra1
{[%clk 0:35:46]} 46... Ra5 {[%clk 0:33:30]} 47. Nc4 {[%clk 0:36:13]} 47... Rh5+
{[%clk 0:33:55]} 48. Kg3 {[%clk 0:36:37]} 1-0

[Variant "Standard"]
[Site "Europe Echecs"]

[Event "Sunway Sitges Chess Festival"]
[Date "2024.12.21"]
[White "Makkar, Rajat"]
[Black "Beisteiner, Joachim"]
[WhiteElo "2433"]
[BlackElo "2161"]
[Round "5.29"]
[Result "1-0"]
[TimeControl "40/5400+30:1800+30"]

1. d4 {[%clk 1:28:28]} 1... d5 {[%clk 1:30:20]} 2. c4 {[%clk 1:28:50]} 2... e6
{[%clk 1:30:36]} 3. Nf3 {[%clk 1:29:15]} 3... Nf6 {[%clk 1:30:49]} 4. Nc3 {[%clk
1:29:41]} 4... Be7 {[%clk 1:30:59]} 5. Bf4 {[%clk 1:29:58]} 5... O-O {[%clk
1:31:13]} 6. e3 {[%clk 1:30:23]} 6... c5 {[%clk 1:31:25]} 7. dxc5 {[%clk
1:30:23]} 7... Bxc5 {[%clk 1:31:28]} 8. a3 {[%clk 1:30:28]} 8... Nc6 {[%clk
1:31:37]} 9. Qc2 {[%clk 1:29:48]} 9... Qa5 {[%clk 1:31:07]} 10. Rd1 {[%clk
1:29:08]} 10... Be7 {[%clk 1:30:54]} 11. Nd2 {[%clk 1:26:02]} 11... e5 {[%clk
1:25:24]} 12. Bg5 {[%clk 1:25:54]} 12... d4 {[%clk 1:23:40]} 13. Nb3 {[%clk
1:24:55]} 13... Qd8 {[%clk 1:22:40]} 14. Bd3 {[%clk 1:19:04]} 14... h6 {[%clk
1:18:55]} 15. Bxf6 {[%clk 1:16:06]} 15... Bxf6 {[%clk 1:18:57]} 16. Ne2 {[%clk
1:12:55]} 16... a5 {[%clk 1:16:15]} 17. O-O {[%clk 1:11:28]} 17... a4 {[%clk
1:00:51]} 18. Nc5 {[%clk 1:10:52]} 18... Be7 {[%clk 1:00:03]} 19. exd4 {[%clk
1:05:51]} 19... Bxc5 {[%clk 0:58:15]} 20. dxc5 {[%clk 1:06:12]} 20... Qe7 {[%clk
0:58:32]} 21. Nc3 {[%clk 0:47:22]} 21... Nd4 {[%clk 0:55:31]} 22. Qc1 {[%clk
0:45:49]} 22... Qxc5 {[%clk 0:55:01]} 23. Kh1 {[%clk 0:45:39]} 23... Be6 {[%clk
0:51:04]} 24. f4 {[%clk 0:42:44]} 24... Nb3 {[%clk 0:36:04]} 25. Qc2 {[%clk
0:40:27]} 25... Bxc4 {[%clk 0:32:06]} 26. Bxc4 {[%clk 0:35:11]} 26... Qxc4
{[%clk 0:32:13]} 27. fxe5 {[%clk 0:35:38]} 27... Rad8 {[%clk 0:27:06]} 28. Rfe1
{[%clk 0:35:39]} 28... Nc5 {[%clk 0:26:26]} 29. Rd6 {[%clk 0:32:45]} 29... Rde8
{[%clk 0:17:27]} 30. Qd1 {[%clk 0:30:50]} 30... Re6 {[%clk 0:09:45]} 31. Rd4
{[%clk 0:30:12]} 31... Qb3 {[%clk 0:09:34]} 32. Qd2 {[%clk 0:29:58]} 32... Rb6
{[%clk 0:05:47]} 33. Nd5 {[%clk 0:28:50]} 33... Re6 {[%clk 0:05:14]} 34. h3
{[%clk 0:24:59]} 34... Kh8 {[%clk 0:03:22]} 35. Nf6 {[%clk 0:24:23]} 35... Qb6
{[%clk 0:01:21]} 36. Rh4 {[%clk 0:24:15]} 36... Rxf6 {[%clk 0:00:40]} 37. exf6
{[%clk 0:24:34]} 37... Qxf6 {[%clk 0:01:02]} 38. Rf4 {[%clk 0:24:47]} 38... Qg6
{[%clk 0:00:43]} 39. Rg4 {[%clk 0:18:37]} 39... Qf6 {[%clk 0:00:50]} 40. Qe2
{[%clk 0:48:59]} 40... Qc6 {[%clk 0:30:36]} 41. Qc4 {[%clk 0:46:58]} 41... b6
{[%clk 0:28:29]} 42. Qc3 {[%clk 0:44:49]} 42... Rg8 {[%clk 0:27:58]} 43. Re7
{[%clk 0:43:38]} 43... Qd5 {[%clk 0:26:54]} 44. Qd4 {[%clk 0:41:24]} 44... Qf5
{[%clk 0:26:11]} 45. Qf4 {[%clk 0:41:02]} 45... Qb1+ {[%clk 0:19:32]} 46. Kh2
{[%clk 0:41:00]} 46... Qxb2 {[%clk 0:19:56]} 47. Qxf7 {[%clk 0:39:12]} 47... Qd2
{[%clk 0:16:42]} 48. Rg6 {[%clk 0:35:23]} 48... b5 {[%clk 0:15:14]} 49. Qf5
{[%clk 0:35:28]} 49... Nb3 {[%clk 0:13:06]} 50. Rexg7 {[%clk 0:35:34]} 1-0

[Variant "Standard"]
[Site "Europe Echecs"]

[Event "Sunway Sitges Chess Festival"]
[Date "2024.12.21"]
[White "Koridze, Lile"]
[Black "Alexiadis, Hristos"]
[WhiteElo "2107"]
[BlackElo "2341"]
[Round "5.30"]
[Result "0-1"]
[TimeControl "40/5400+30:1800+30"]

1. d4 {[%clk 1:27:00]} 1... Nf6 {[%clk 1:29:53]} 2. c4 {[%clk 1:27:22]} 2... e6
{[%clk 1:29:04]} 3. Nf3 {[%clk 1:27:32]} 3... c5 {[%clk 1:29:17]} 4. e3 {[%clk
1:26:36]} 4... d5 {[%clk 1:27:09]} 5. Nc3 {[%clk 1:22:12]} 5... a6 {[%clk
1:27:32]} 6. cxd5 {[%clk 1:16:19]} 6... exd5 {[%clk 1:27:54]} 7. dxc5 {[%clk
1:15:53]} 7... Bxc5 {[%clk 1:27:48]} 8. Be2 {[%clk 1:13:41]} 8... O-O {[%clk
1:28:09]} 9. O-O {[%clk 1:07:23]} 9... Nc6 {[%clk 1:27:37]} 10. b3 {[%clk
0:57:58]} 10... Qd6 {[%clk 1:13:23]} 11. Bb2 {[%clk 0:54:11]} 11... Ba7 {[%clk
1:11:29]} 12. Qd2 {[%clk 0:50:42]} 12... Bg4 {[%clk 1:02:09]} 13. Rfd1 {[%clk
0:47:14]} 13... Rad8 {[%clk 0:59:12]} 14. Rac1 {[%clk 0:41:59]} 14... Rfe8
{[%clk 0:53:35]} 15. Ba1 {[%clk 0:37:36]} 15... d4 {[%clk 0:39:49]} 16. g3
{[%clk 0:23:16]} 16... Qe6 {[%clk 0:32:39]} 17. Nxd4 {[%clk 0:09:55]} 17... Nxd4
{[%clk 0:30:54]} 18. exd4 {[%clk 0:10:21]} 18... Bxe2 {[%clk 0:23:44]} 19. Re1
{[%clk 0:10:47]} 19... Qh3 {[%clk 0:24:07]} 20. Rxe2 {[%clk 0:05:06]} 20... Ng4
{[%clk 0:24:01]} 21. Re3 {[%clk 0:03:47]} 21... Qxh2+ {[%clk 0:24:15]} 22. Kf1
{[%clk 0:04:14]} 22... Nxe3+ {[%clk 0:24:19]} 0-1

[Variant "Standard"]
[Site "Europe Echecs"]

[Event "Sunway Sitges Chess Festival"]
[Date "2024.12.21"]
[White "Khusenkhojaev, Mustafokhuja"]
[Black "Pniaczek, Marek"]
[WhiteElo "2339"]
[BlackElo "2132"]
[Round "5.31"]
[Result "1-0"]
[TimeControl "40/5400+30:1800+30"]

1. d4 {[%clk 1:30:56]} 1... Nf6 {[%clk 1:28:31]} 2. c4 {[%clk 1:31:18]} 2... e6
{[%clk 1:28:02]} 3. g3 {[%clk 1:31:33]} 3... d5 {[%clk 1:29:22]} 4. Nf3 {[%clk
1:31:18]} 4... dxc4 {[%clk 1:28:57]} 5. Bg2 {[%clk 1:32:13]} 5... c5 {[%clk
1:29:46]} 6. O-O {[%clk 1:32:24]} 6... Nc6 {[%clk 1:30:07]} 7. Qa4 {[%clk
1:31:27]} 7... Bd7 {[%clk 1:29:47]} 8. Qxc4 {[%clk 1:30:46]} 8... b5 {[%clk
1:29:37]} 9. Qd3 {[%clk 1:30:02]} 9... c4 {[%clk 1:29:27]} 10. Qd1 {[%clk
1:29:26]} 10... Rc8 {[%clk 1:18:08]} 11. Bg5 {[%clk 1:28:33]} 11... Be7 {[%clk
1:17:51]} 12. Nbd2 {[%clk 1:22:54]} 12... h6 {[%clk 1:17:40]} 13. Bxf6 {[%clk
1:23:32]} 13... Bxf6 {[%clk 1:16:53]} 14. e3 {[%clk 1:23:22]} 14... O-O {[%clk
1:23:17]} 15. a4 {[%clk 1:22:56]} 15... a6 {[%clk 1:22:30]} 16. axb5 {[%clk
1:22:14]} 16... axb5 {[%clk 1:22:51]} 17. Ne4 {[%clk 1:16:09]} 17... Be7 {[%clk
1:03:22]} 18. Qe2 {[%clk 0:58:55]} 18... Qb6 {[%clk 0:59:01]} 19. g4 {[%clk
0:55:19]} 19... f5 {[%clk 0:52:19]} 20. gxf5 {[%clk 0:55:10]} 20... exf5 {[%clk
0:52:44]} 21. Nc3 {[%clk 0:55:20]} 21... Nb4 {[%clk 0:31:56]} 22. Ne5 {[%clk
0:51:21]} 22... Be8 {[%clk 0:31:45]} 23. f4 {[%clk 0:40:18]} 23... Bf6 {[%clk
0:30:29]} 24. Nd5 {[%clk 0:33:29]} 24... Nxd5 {[%clk 0:30:48]} 25. Bxd5+ {[%clk
0:33:57]} 25... Kh8 {[%clk 0:30:32]} 26. Kh1 {[%clk 0:28:53]} 26... Bxe5 {[%clk
0:30:02]} 27. fxe5 {[%clk 0:28:17]} 27... Bc6 {[%clk 0:29:33]} 28. Bxc6 {[%clk
0:28:24]} 28... Qxc6+ {[%clk 0:27:34]} 29. Qg2 {[%clk 0:28:52]} 29... Qe6 {[%clk
0:24:45]} 30. Ra7 {[%clk 0:28:30]} 30... Rf7 {[%clk 0:20:40]} 31. d5 {[%clk
0:27:50]} 31... Qe8 {[%clk 0:21:09]} 32. Rxf7 {[%clk 0:28:02]} 32... Qxf7 {[%clk
0:21:39]} 33. e6 {[%clk 0:28:12]} 33... Qf6 {[%clk 0:22:02]} 34. Qh3 {[%clk
0:28:25]} 34... Qxb2 {[%clk 0:16:40]} 35. Qxf5 {[%clk 0:26:18]} 1-0

[Variant "Standard"]
[Site "Europe Echecs"]

[Event "Sunway Sitges Chess Festival"]
[Date "2024.12.21"]
[White "Naoum, Spyridon"]
[Black "Charvein, Gabriel"]
[WhiteElo "2338"]
[BlackElo "2119"]
[Round "5.32"]
[Result "1-0"]
[TimeControl "40/5400+30:1800+30"]

1. f4 {[%clk 1:30:57]} 1... d5 {[%clk 1:29:32]} 2. Nf3 {[%clk 1:31:23]} 2... Bg4
{[%clk 1:29:57]} 3. e3 {[%clk 1:31:49]} 3... Nd7 {[%clk 1:30:23]} 4. c4 {[%clk
1:19:59]} 4... e6 {[%clk 1:26:08]} 5. Nc3 {[%clk 1:19:58]} 5... Ngf6 {[%clk
1:25:08]} 6. h3 {[%clk 1:20:20]} 6... Bxf3 {[%clk 1:24:17]} 7. Qxf3 {[%clk
1:20:48]} 7... Ne4 {[%clk 1:08:03]} 8. Nxe4 {[%clk 1:15:16]} 8... dxe4 {[%clk
1:07:58]} 9. Qxe4 {[%clk 1:15:17]} 9... Qh4+ {[%clk 1:07:50]} 10. Kd1 {[%clk
1:15:44]} 10... O-O-O {[%clk 1:07:49]} 11. Be2 {[%clk 1:10:51]} 11... Bb4 {[%clk
0:57:31]} 12. Kc2 {[%clk 1:08:36]} 12... Qf6 {[%clk 0:47:46]} 13. d4 {[%clk
1:05:24]} 13... c6 {[%clk 0:41:05]} 14. Rf1 {[%clk 1:04:39]} 14... h5 {[%clk
0:36:28]} 15. a3 {[%clk 1:03:16]} 15... Bd6 {[%clk 0:31:14]} 16. b4 {[%clk
1:03:35]} 16... Qe7 {[%clk 0:30:38]} 17. Bd2 {[%clk 1:00:06]} 17... h4 {[%clk
0:28:57]} 18. Rab1 {[%clk 0:58:37]} 18... f5 {[%clk 0:28:02]} 19. Qd3 {[%clk
0:58:22]} 19... Nf6 {[%clk 0:26:02]} 20. Bf3 {[%clk 0:58:47]} 20... g6 {[%clk
0:24:42]} 21. c5 {[%clk 0:55:15]} 21... Bb8 {[%clk 0:22:51]} 22. b5 {[%clk
0:55:34]} 22... cxb5 {[%clk 0:22:46]} 23. Rxb5 {[%clk 0:54:48]} 23... Nd5 {[%clk
0:21:17]} 24. Rfb1 {[%clk 0:54:46]} 1-0

[Variant "Standard"]
[Site "Europe Echecs"]

[Event "Sunway Sitges Chess Festival"]
[Date "2024.12.21"]
[White "Filgueiras, Nathan Felipe"]
[Black "Banerjee, Supratit"]
[WhiteElo "2328"]
[BlackElo "2116"]
[Round "5.33"]
[Result "0-1"]
[TimeControl "40/5400+30:1800+30"]

1. e4 {[%clk 1:30:57]} 1... c6 {[%clk 1:30:26]} 2. d4 {[%clk 1:31:21]} 2... d5
{[%clk 1:30:50]} 3. e5 {[%clk 1:31:47]} 3... Bf5 {[%clk 1:31:11]} 4. Be2 {[%clk
1:32:14]} 4... e6 {[%clk 1:31:30]} 5. Nf3 {[%clk 1:32:35]} 5... c5 {[%clk
1:31:54]} 6. Be3 {[%clk 1:33:00]} 6... cxd4 {[%clk 1:29:57]} 7. Nxd4 {[%clk
1:32:29]} 7... Ne7 {[%clk 1:30:12]} 8. h4 {[%clk 1:32:54]} 8... h6 {[%clk
1:24:38]} 9. c4 {[%clk 1:31:31]} 9... Bxb1 {[%clk 1:16:21]} 10. Rxb1 {[%clk
1:29:29]} 10... Nbc6 {[%clk 1:14:02]} 11. Qa4 {[%clk 1:27:04]} 11... Qd7 {[%clk
1:05:45]} 12. cxd5 {[%clk 1:08:26]} 12... Nxd5 {[%clk 1:05:02]} 13. Nxc6 {[%clk
1:08:33]} 13... Bb4+ {[%clk 0:55:13]} 14. Qxb4 {[%clk 0:54:12]} 14... Nxb4
{[%clk 0:55:35]} 15. Nxb4 {[%clk 0:54:39]} 15... O-O {[%clk 0:54:43]} 16. O-O
{[%clk 0:47:58]} 16... Qe7 {[%clk 0:53:50]} 17. a3 {[%clk 0:45:18]} 17... Qxh4
{[%clk 0:51:50]} 18. Bf3 {[%clk 0:44:29]} 18... a5 {[%clk 0:51:17]} 19. Nd3
{[%clk 0:43:39]} 19... Rad8 {[%clk 0:49:52]} 20. Nc5 {[%clk 0:41:07]} 20... b6
{[%clk 0:44:44]} 21. Nb7 {[%clk 0:32:22]} 21... Rd3 {[%clk 0:43:36]} 22. Rfd1
{[%clk 0:32:06]} 22... Rxe3 {[%clk 0:41:42]} 23. fxe3 {[%clk 0:32:30]} 23... Qg5
{[%clk 0:42:06]} 24. Kf2 {[%clk 0:31:30]} 24... Qxe5 {[%clk 0:41:28]} 25. Nd6
{[%clk 0:31:49]} 25... f5 {[%clk 0:39:16]} 26. g3 {[%clk 0:18:23]} 26... g5
{[%clk 0:36:12]} 27. Rd2 {[%clk 0:15:12]} 27... f4 {[%clk 0:34:50]} 28. gxf4
{[%clk 0:14:30]} 28... gxf4 {[%clk 0:35:11]} 29. Re1 {[%clk 0:13:31]} 29... Rd8
{[%clk 0:34:20]} 30. Nc4 {[%clk 0:10:48]} 30... Rxd2+ {[%clk 0:34:36]} 31. Nxd2
{[%clk 0:11:13]} 31... Qxb2 {[%clk 0:35:01]} 32. Re2 {[%clk 0:11:36]} 32...
fxe3+ {[%clk 0:35:27]} 33. Kxe3 {[%clk 0:12:00]} 33... Qxa3+ {[%clk 0:35:52]}
34. Kf4 {[%clk 0:12:21]} 34... Qf8+ {[%clk 0:36:00]} 35. Ke5 {[%clk 0:12:11]}
35... Kf7 {[%clk 0:34:28]} 36. Rg2 {[%clk 0:09:23]} 36... Qc5+ {[%clk 0:34:53]}
37. Kf4 {[%clk 0:09:45]} 37... a4 {[%clk 0:34:15]} 38. Ne4 {[%clk 0:10:12]}
38... Qf5+ {[%clk 0:33:59]} 39. Ke3 {[%clk 0:10:39]} 39... Qe5 {[%clk 0:34:21]}
40. Ra2 {[%clk 0:40:25]} 40... b5 {[%clk 1:04:11]} 41. Rc2 {[%clk 0:40:54]}
41... a3 {[%clk 1:03:06]} 42. Rc5 {[%clk 0:41:09]} 42... Qb8 {[%clk 1:03:30]}
43. Kd4 {[%clk 0:40:37]} 0-1

[Variant "Standard"]
[Site "Europe Echecs"]

[Event "Sunway Sitges Chess Festival"]
[Date "2024.12.21"]
[White "Lacasa Diaz, Josep Anton"]
[Black "Jaksland, Tim"]
[WhiteElo "2324"]
[BlackElo "2107"]
[Round "5.34"]
[Result "1/2-1/2"]
[TimeControl "40/5400+30:1800+30"]

1. Nf3 {[%clk 1:30:56]} 1... Nf6 {[%clk 1:30:16]} 2. c4 {[%clk 1:31:18]} 2... c5
{[%clk 1:30:10]} 3. Nc3 {[%clk 1:31:30]} 3... Nc6 {[%clk 1:29:41]} 4. e3 {[%clk
1:25:26]} 4... e5 {[%clk 1:28:45]} 5. d4 {[%clk 1:22:53]} 5... e4 {[%clk
1:26:13]} 6. Ne5 {[%clk 1:09:18]} 6... h5 {[%clk 1:13:05]} 7. Nxc6 {[%clk
1:01:59]} 7... dxc6 8. Be2 {[%clk 0:53:26]} 8... Bf5 {[%clk 1:00:14]} 9. a3
{[%clk 1:05:03]} 9... Bd6 {[%clk 0:43:48]} 10. dxc5 {[%clk 1:00:44]} 10... Bxc5
{[%clk 0:43:24]} 11. b4 {[%clk 1:00:45]} 11... Bd6 {[%clk 0:39:41]} 12. Bb2
{[%clk 1:00:16]} 12... Qe7 {[%clk 0:39:16]} 13. Qc2 {[%clk 0:54:09]} 13... O-O
{[%clk 0:36:22]} 14. h3 {[%clk 0:50:49]} 14... h4 {[%clk 0:35:43]} 15. c5 {[%clk
0:42:13]} 15... Bc7 {[%clk 0:33:43]} 16. Bg4 {[%clk 0:40:27]} 16... Bg6 {[%clk
0:28:46]} 17. O-O-O {[%clk 0:36:31]} 17... a5 {[%clk 0:27:36]} 18. Rd2 {[%clk
0:33:50]} 18... Rfd8 {[%clk 0:23:27]} 19. Rxd8+ {[%clk 0:33:09]} 19... Rxd8
{[%clk 0:23:51]} 20. Rd1 {[%clk 0:33:18]} 20... axb4 {[%clk 0:10:45]} 21. axb4
{[%clk 0:31:50]} 21... Be5 {[%clk 0:09:37]} 22. Rxd8+ {[%clk 0:30:14]} 22...
Qxd8 {[%clk 0:10:06]} 23. Qd1 {[%clk 0:28:40]} 23... Qxd1+ {[%clk 0:09:45]} 24.
Nxd1 {[%clk 0:23:45]} 24... Nxg4 {[%clk 0:08:00]} 25. hxg4 {[%clk 0:24:08]}
25... Bc7 {[%clk 0:07:52]} 26. Kd2 {[%clk 0:22:09]} 26... f6 {[%clk 0:08:09]}
27. Bd4 {[%clk 0:19:22]} 27... Kf7 {[%clk 0:05:17]} 28. Ke2 {[%clk 0:18:38]}
28... Ke6 {[%clk 0:04:14]} 29. Nc3 {[%clk 0:18:54]} 29... Bh7 {[%clk 0:04:14]}
30. f3 {[%clk 0:16:58]} 30... exf3+ {[%clk 0:04:24]} 31. Kxf3 {[%clk 0:17:19]}
31... Bc2 {[%clk 0:03:36]} 32. Ke2 {[%clk 0:10:58]} 32... g6 {[%clk 0:03:21]}
33. Kf3 {[%clk 0:11:09]} 33... f5 {[%clk 0:03:06]} 34. gxf5+ {[%clk 0:11:27]}
34... gxf5 {[%clk 0:03:12]} 35. Bg7 {[%clk 0:08:19]} 35... Bb3 {[%clk 0:01:50]}
36. e4 {[%clk 0:07:27]} 36... fxe4+ {[%clk 0:01:46]} 37. Kxe4 {[%clk 0:07:45]}
37... Bc4 {[%clk 0:01:40]} 38. Bd4 {[%clk 0:06:47]} 38... Bg3 {[%clk 0:01:51]}
39. Kf3 {[%clk 0:06:50]} 39... Kf5 {[%clk 0:01:43]} 40. Bf2 {[%clk 0:35:45]}
40... Be5 {[%clk 0:31:20]} 41. Be1 {[%clk 0:31:24]} 41... Bf6 {[%clk 0:26:46]}
42. Ke3 {[%clk 0:28:43]} 42... Bg5+ {[%clk 0:16:03]} 43. Kf3 {[%clk 0:25:04]}
43... Bf7 {[%clk 0:15:14]} 44. g3 {[%clk 0:14:53]} 44... Bh5+ {[%clk 0:09:43]}
45. Kg2 {[%clk 0:15:17]} 45... hxg3 {[%clk 0:09:59]} 46. Kxg3 {[%clk 0:15:42]}
46... Ke5 {[%clk 0:10:12]} 47. b5 {[%clk 0:14:07]} 47... Kd4 {[%clk 0:07:40]}
48. bxc6 {[%clk 0:13:56]} 48... bxc6 {[%clk 0:08:05]} 49. Na2 {[%clk 0:13:49]}
49... Kxc5 {[%clk 0:06:08]} 50. Nb4 {[%clk 0:14:13]} 50... Kb5 {[%clk 0:06:10]}
51. Nxc6 {[%clk 0:14:36]} 51... Kxc6 {[%clk 0:06:36]} 1/2-1/2

[Variant "Standard"]
[Site "Europe Echecs"]

[Event "Sunway Sitges Chess Festival"]
[Date "2024.12.21"]
[White "Koskinen, Henri"]
[Black "Patrascu, Catalin-Lucian"]
[WhiteElo "2118"]
[BlackElo "2299"]
[Round "5.35"]
[Result "1/2-1/2"]
[TimeControl "40/5400+30:1800+30"]

1. d4 {[%clk 1:30:55]} 1... Nf6 {[%clk 1:30:54]} 2. Nf3 {[%clk 1:30:33]} 2... e6
{[%clk 1:31:13]} 3. c4 {[%clk 1:30:36]} 3... d5 {[%clk 1:31:28]} 4. g3 {[%clk
1:28:59]} 4... Be7 {[%clk 1:31:01]} 5. Bg2 {[%clk 1:29:08]} 5... O-O {[%clk
1:31:26]} 6. O-O {[%clk 1:29:32]} 6... c6 {[%clk 1:31:18]} 7. Qc2 {[%clk
1:28:56]} 7... Nbd7 {[%clk 1:31:34]} 8. Nbd2 {[%clk 1:24:00]} 8... b6 {[%clk
1:31:16]} 9. Rd1 {[%clk 1:20:08]} 9... Bb7 {[%clk 1:29:47]} 10. e4 {[%clk
1:17:54]} 10... Rc8 {[%clk 1:29:25]} 11. e5 {[%clk 1:17:04]} 11... Ne8 {[%clk
1:29:48]} 12. b3 {[%clk 1:13:30]} 12... Nc7 {[%clk 1:26:01]} 13. Bb2 {[%clk
1:12:47]} 13... c5 {[%clk 1:21:58]} 14. Nf1 {[%clk 1:08:55]} 14... Qe8 {[%clk
1:04:57]} 15. Ne3 {[%clk 1:03:52]} 15... Ba8 {[%clk 0:56:52]} 16. Qe2 {[%clk
1:00:26]} 16... a5 {[%clk 0:51:44]} 17. Rac1 {[%clk 0:57:56]} 17... Nb8 {[%clk
0:35:19]} 18. cxd5 {[%clk 0:51:16]} 18... Nxd5 {[%clk 0:35:07]} 19. Nc4 {[%clk
0:48:52]} 19... Qb5 {[%clk 0:29:18]} 20. dxc5 {[%clk 0:45:20]} 20... bxc5 {[%clk
0:28:15]} 21. Qe1 {[%clk 0:31:41]} 21... Nc6 {[%clk 0:17:44]} 22. Nfd2 {[%clk
0:30:52]} 22... Ncb4 {[%clk 0:15:46]} 23. Ne4 {[%clk 0:30:34]} 23... Rc7 {[%clk
0:13:27]} 24. Ned6 {[%clk 0:29:23]} 24... Qa6 {[%clk 0:12:26]} 25. a3 {[%clk
0:26:46]} 25... Nc6 {[%clk 0:12:34]} 26. a4 {[%clk 0:24:09]} 26... Ncb4 {[%clk
0:10:08]} 27. Nb5 {[%clk 0:22:01]} 27... Rd7 {[%clk 0:09:35]} 28. Ncd6 {[%clk
0:21:57]} 28... Qb6 {[%clk 0:08:41]} 29. Qe2 {[%clk 0:18:49]} 29... Rfd8 {[%clk
0:04:32]} 30. Qh5 {[%clk 0:14:56]} 30... Bf8 {[%clk 0:04:04]} 31. Qg4 {[%clk
0:11:40]} 31... f5 {[%clk 0:01:58]} 32. Qc4 {[%clk 0:10:13]} 32... Bc6 {[%clk
0:01:07]} 33. Qxc5 {[%clk 0:02:56]} 33... Bxb5 {[%clk 0:01:05]} 34. Qxb5 {[%clk
0:02:54]} 34... Bxd6 {[%clk 0:00:59]} 1/2-1/2

[Variant "Standard"]
[Site "Europe Echecs"]